fUSD/lending_fUSD_20250213
["ID","MTS","AMOUNT","RATE_DAILY","PERIOD"]
[352951664,1739459353548,-1038.77,0.00013998,2]
[352951665,1739459353575,-939.22,0.00013998,2]
[352951666,1739459353599,-973.483205,0.00013998,2]
[352951667,1739459353622,-500.0,0.00013998,2]
[352951668,1739459353645,-853.51,0.00013998,2]
[352951669,1739459353667,-500.0,0.00013998,2]
[352951670,1739459353689,-500.0,0.00013998,2]
[352951671,1739459353711,-500.0,0.00013998,2]
[352951672,1739459353734,-500.0,0.00013998,2]
[352951673,1739459353756,-1819.21,0.00013998,2]
[352951674,1739459353779,-971.78,0.00013998,2]
[352951675,1739459353807,-500.0,0.00013998,2]
[352951676,1739459353832,-500.0,0.00013998,2]
[352951677,1739459353854,-502.73257734,0.00013998,2]
[352951678,1739459353877,-2137.93,0.00013998,2]
[352951679,1739459353900,-404.21888376,0.00013998,2]
[352951680,1739459353924,-500.0,0.00013998,2]
[352951681,1739459353946,-500.0,0.00013998,2]
[352951682,1739459353968,-587.75,0.00013998,2]
[352951683,1739459353991,-500.0,0.00013998,2]
[352951684,1739459354013,-500.0,0.00013998,2]
[352951685,1739459354036,-2023.86,0.00013998,2]
[352951686,1739459354064,-500.0,0.00013998,2]
[352951687,1739459354087,-692.78,0.00013998,2]
[352951688,1739459354109,-500.0,0.00013998,2]
[352951689,1739459354131,-500.0,0.00013998,2]
[352951690,1739459354154,-3810.66,0.00013998,2]
[352951691,1739459354176,-544.66,0.00013998,2]
[352951692,1739459354198,-500.0,0.00013998,2]
[352951693,1739459354223,-500.0,0.00013998,2]
[352951694,1739459354247,-500.0,0.00013998,2]
[352951695,1739459354269,-3545.65,0.00013998,2]
[352951696,1739459354291,-500.0,0.00013998,2]
[352951697,1739459354319,-5241.48,0.00013998,2]
[352951698,1739459354340,-647.25,0.00013998,2]
[352951699,1739459354361,-500.0,0.00013998,2]
[352951700,1739459354382,-3576.02,0.00013998,2]
[352951701,1739459354405,-625.98,0.00013998,2]
[352951702,1739459354427,-500.0,0.00013998,2]
[352951703,1739459354450,-2236.44,0.00013998,2]
[352951704,1739459354472,-842.06,0.00013998,2]
[352951705,1739459354494,-9740.72868903,0.00013998,2]
[352951706,1739459356007,-438.93,0.00013425,2]
[352951707,1739459356029,-986.09,0.00013425,2]
[352951708,1739459356050,-150.0,0.00013425,2]
[352951709,1739459356074,-150.0,0.00013425,2]
[352951710,1739459356096,-150.0,0.00013425,2]
[352951711,1739459356117,-300.35,0.00013425,2]
[352951712,1739459356138,-6.69565209,0.00013425,2]
[352951713,1739459357682,600.0,0.00011564,2]
[352951714,1739459369158,4012.6013,8.836e-05,2]
[352951715,1739459374188,-600.0,0.00012934,2]
[352951716,1739459374212,-143.85434791,0.00013425,2]
[352951717,1739459374238,-150.0,0.00013425,2]
[352951718,1739459374263,-2216.03,0.00013997,2]
[352951719,1739459374290,-500.0,0.00013997,2]
[352951720,1739459374319,-3529.72,0.00013997,2]
[352951721,1739459374350,-4786.34,0.00013997,2]
[352951722,1739459374377,-3151.4,0.00013997,2]
[352951723,1739459374402,-500.0,0.00013998,2]
[352951724,1739459374427,-500.0,0.00013998,2]
[352951725,1739459374452,-500.0,0.00013998,2]
[352951726,1739459374476,-500.0,0.00013998,2]
[352951727,1739459374500,-537.17,0.00013998,2]
[352951728,1739459374523,-1094.73,0.00013998,2]
[352951729,1739459374545,-500.0,0.00013998,2]
[352951730,1739459374572,-500.0,0.00013998,2]
[352951731,1739459374596,-317.3870164,0.00013998,2]
[352951732,1739459374619,-500.0,0.00013998,2]
[352951733,1739459374642,-591.46,0.00013998,2]
[352951734,1739459374665,-1036.83,0.00013998,2]
[352951735,1739459374690,-5824.59,0.00013998,2]
[352951736,1739459374713,-900.41,0.00013998,2]
[352951737,1739459374736,-500.0,0.00013998,2]
[352951738,1739459374759,-3124.05,0.00013998,2]
[352951739,1739459374782,-500.0,0.00013998,2]
[352951740,1739459374805,-500.0,0.00013998,2]
[352951741,1739459374832,-2481.94,0.00013998,2]
[352951742,1739459374855,-500.0,0.00013998,2]
[352951743,1739459374878,-500.0,0.00013998,2]
[352951744,1739459374903,-500.0,0.00013998,2]
[352951745,1739459374925,-500.0,0.00013998,2]
[352951746,1739459374947,-500.0,0.00013998,2]
[352951747,1739459374971,-1095.97,0.00013998,2]
[352951748,1739459374993,-500.0,0.00013998,2]
[352951749,1739459375016,-500.0,0.00013998,2]
[352951750,1739459375040,-1615.18,0.00013998,2]
[352951751,1739459375063,-819.66,0.00013998,2]
[352951752,1739459375088,-2136.09,0.00013998,2]
[352951753,1739459375112,-8359.02,0.00013998,2]
[352951754,1739459375134,-454.93333642,0.00013998,2]
[352951755,1739459375157,-500.0,0.00013998,2]
[352951756,1739459375179,-500.0,0.00013998,2]
[352951757,1739459375202,-621.48649023,0.00013998,2]
[352951758,1739459375224,-1342.24,0.00013998,2]
[352951759,1739459375250,-500.0,0.00013998,2]
[352951760,1739459375274,-500.0,0.00013998,2]
[352951761,1739459375298,-2380.32,0.00013998,2]
[352951762,1739459375324,-500.0,0.00013998,2]
[352951763,1739459375346,-500.0,0.00013998,2]
[352951764,1739459375367,-1289.8,0.00013998,2]
[352951765,1739459375390,-500.0,0.00013998,2]
[352951766,1739459375417,-1534.97,0.00013998,2]
[352951767,1739459375440,-500.0,0.00013998,2]
[352951768,1739459375464,-1065.94,0.00013998,2]
[352951769,1739459375487,-1051.28,0.00013998,2]
[352951770,1739459375510,-500.0,0.00013998,2]
[352951771,1739459375533,-500.0,0.00013998,2]
[352951772,1739459375557,-2896.63,0.00013998,2]
[352951773,1739459375583,-4125.61,0.00013998,2]
[352951774,1739459375607,-4340.5,0.00013998,2]
[352951775,1739459375634,-772.17,0.00013998,2]
[352951776,1739459375657,-2782.98,0.00013998,2]
[352951777,1739459375681,-2070.25,0.00013998,2]
[352951778,1739459375704,-500.0,0.00013998,2]
[352951779,1739459375726,-500.0,0.00013998,2]
[352951780,1739459375749,-899.65,0.00013998,2]
[352951781,1739459375771,-497.486,0.00013998,2]
[352951782,1739459375795,-4800.63,0.00013998,2]
[352951783,1739459375819,-864.27,0.00013998,2]
[352951784,1739459375841,-500.0,0.00013998,2]
[352951785,1739459375867,-2042.06,0.00013998,2]
[352951786,1739459375889,-773.84,0.00013998,2]
[352951787,1739459375912,-726.39,0.00013998,2]
[352951788,1739459375935,-2044.92,0.00013998,2]
[352951789,1739459375958,-1364.9,0.00013998,2]
[352951790,1739459375981,-3959.73,0.00013998,2]
[352951791,1739459376004,-500.0,0.00013998,2]
[352951792,1739459376026,-500.0,0.00013998,2]
[352951793,1739459376048,-2302.61,0.00013998,2]
[352951794,1739459376073,-500.0,0.00013998,2]
[352951795,1739459376095,-2096.29,0.00013998,2]
[352951796,1739459376118,-500.0,0.00013998,2]
[352951797,1739459376141,-502.49889389,0.00013998,2]
[352951798,1739459376163,-1305.48,0.00013998,2]
[352951799,1739459376186,-588.45,0.00013998,2]
[352951800,1739459376209,-3471.73,0.00013998,2]
[352951801,1739459376235,-500.0,0.00013998,2]
[352951802,1739459376257,-500.0,0.00013998,2]
[352951803,1739459376280,-2462.78,0.00013998,2]
[352951804,1739459376303,-1643.25,0.00013998,2]
[352951805,1739459376328,-500.0,0.00013998,2]
[352951806,1739459376351,-500.0,0.00013998,2]
[352951807,1739459376373,-704.84,0.00013998,2]
[352951808,1739459376395,-1126.44,0.00013998,2]
[352951809,1739459376417,-2007.06,0.00013998,2]
[352951810,1739459376442,-856.28,0.00013998,2]
[352951811,1739459376465,-564.15,0.00013998,2]
[352951812,1739459376489,-2374.12,0.00013998,2]
[352951813,1739459376511,-500.0,0.00013998,2]
[352951814,1739459376534,-819.15,0.00013998,2]
[352951815,1739459376556,-589.69,0.00013998,2]
[352951816,1739459376581,-697.69,0.00013998,2]
[352951817,1739459376604,-1159.41,0.00013998,2]
[352951818,1739459376629,-1271.45,0.00013998,2]
[352951819,1739459376651,-500.0,0.00013998,2]
[352951820,1739459376673,-500.0,0.00013998,2]
[352951821,1739459376696,-500.0,0.00013998,2]
[352951822,1739459376720,-1842.32,0.00013998,2]
[352951823,1739459376742,-500.0,0.00013998,2]
[352951824,1739459376764,-1157.71,0.00013998,2]
[352951825,1739459376787,-2338.79,0.00013998,2]
[352951826,1739459376812,-500.0,0.00013998,2]
[352951827,1739459376837,-500.0,0.00013998,2]
[352951828,1739459376862,-3301.11,0.00013998,2]
[352951829,1739459376885,-1307.31,0.00013998,2]
[352951830,1739459376909,-500.0,0.00013998,2]
[352951831,1739459376931,-2961.11,0.00013998,2]
[352951832,1739459376954,-2225.56,0.00013998,2]
[352951833,1739459376977,-500.0,0.00013998,2]
[352951834,1739459377000,-4203.53,0.00013998,2]
[352951835,1739459377023,-600.91,0.00013998,2]
[352951836,1739459377045,-500.0,0.00013998,2]
[352951837,1739459377069,-500.0,0.00013998,2]
[352951838,1739459377277,-2340.38,0.00013998,2]
[352951839,1739459377301,-1195.82,0.00013998,2]
[352951840,1739459377329,-1715.29,0.00013998,2]
[352951841,1739459377353,-500.0,0.00013998,2]
[352951842,1739459377375,-3259.36,0.00013998,2]
[352951843,1739459377397,-492.02549716,0.00013998,2]
[352951845,1739459412111,317.0416,8.973e-05,2]
[352951855,1739459432555,-350.02412224,0.00013101,2]
[352951856,1739459432567,-722.23935065,0.00013101,2]
[352951857,1739459432580,-1066.39652711,0.00013101,2]
[352951858,1739459432590,-150.0,0.000134,2]
[352951859,1739459432600,-500.0,0.00013699,2]
[352951860,1739459432612,-150.0,0.00013759,2]
[352951861,1739459432622,-5581.9,0.00013997,2]
[352951862,1739459432632,-822.55920805,0.00013997,2]
[352951884,1739459433244,-687.07454849,0.00013997,2]
[352951886,1739459433259,-868.88624346,0.00013997,2]
[352951888,1739459433268,-142.03982918,0.00013997,2]
[352951890,1739459433279,-357.96017082,0.00013997,2]
[352951892,1739459433289,-2132.94,0.00013997,2]
[352951894,1739459433300,-814.64,0.00013997,2]
[352951896,1739459433309,-1547.88,0.00013997,2]
[352951898,1739459433319,-500.0,0.00013997,2]
[352951900,1739459433332,-1515.52,0.00013997,2]
[352951902,1739459433341,-1948.69,0.00013997,2]
[352951904,1739459433350,-1236.05,0.00013997,2]
[352951906,1739459433363,-7.97450284,0.00013998,2]
[352951908,1739459433372,-104.56169281,0.00013998,2]
[352951910,1739459433384,-2994.66830719,0.00013998,2]
[352951912,1739459433394,-500.0,0.00013998,2]
[352951914,1739459433403,-3709.05,0.00013998,2]
[352951916,1739459433413,-1081.56,0.00013998,2]
[352951918,1739459433423,-500.0,0.00013998,2]
[352951920,1739459433433,-977.28,0.00013998,2]
[352951922,1739459433443,-500.0,0.00013998,2]
[352951924,1739459433452,-3396.61,0.00013998,2]
[352951926,1739459433461,-500.0,0.00013998,2]
[352951928,1739459433470,-500.0,0.00013998,2]
[352951930,1739459433480,-500.0,0.00013998,2]
[352951932,1739459433489,-500.0,0.00013998,2]
[352951933,1739459433499,-2069.20686107,0.00013998,2]
[352951938,1739459433547,-676.34882822,0.00013998,2]
[352951940,1739459433559,-305.84431071,0.00013998,2]
[352951942,1739459433569,-898.48,0.00013998,2]
[352951944,1739459433578,-500.0,0.00013998,2]
[352951946,1739459433587,-3683.07,0.00013998,2]
[352951948,1739459433597,-629.31,0.00013998,2]
[352951950,1739459433607,-3514.93,0.00013998,2]
[352951952,1739459433619,-500.0,0.00013998,2]
[352951954,1739459433629,-500.0,0.00013998,2]
[352951956,1739459433638,-3662.79,0.00013998,2]
[352951958,1739459433648,-3876.63,0.00013998,2]
[352951960,1739459433658,-500.0,0.00013998,2]
[352951962,1739459433668,-2193.1,0.00013998,2]
[352951964,1739459433678,-500.0,0.00013998,2]
[352951966,1739459433687,-567.86,0.00013998,2]
[352951968,1739459433696,-10854.85,0.00013998,2]
[352951970,1739459433706,-973.9,0.00013998,2]
[352951972,1739459433715,-500.0,0.00013998,2]
[352951974,1739459433725,-5555.8,0.00013998,2]
[352951976,1739459433734,-1200.0,0.00013998,2]
[352951978,1739459433743,-523.88285067,0.00013998,2]
[352951980,1739459433752,-500.0,0.00013998,2]
[352951982,1739459433762,-500.0,0.00013998,2]
[352951984,1739459433771,-5504.82,0.00013998,2]
[352951986,1739459433781,-1764.34,0.00013998,2]
[352951988,1739459433791,-416.95487927,0.00013998,2]
[352951990,1739459433800,-1194.82,0.00013998,2]
[352951992,1739459433809,-2993.88,0.00013998,2]
[352951993,1739459433819,-3953.71,0.00013998,2]
[352951994,1739459433828,-500.0,0.00013998,2]
[352951995,1739459433837,-4507.87,0.00013998,2]
[352951996,1739459433847,-639.55,0.00013998,2]
[352951997,1739459433856,-672.82,0.00013998,2]
[352951998,1739459433868,-200.0,0.00013998,2]
[352951999,1739459433878,-500.0,0.00013998,2]
[352952000,1739459433888,-500.0,0.00013998,2]
[352952001,1739459433898,-4600.61,0.00013998,2]
[352952002,1739459433908,-500.0,0.00013998,2]
[352952003,1739459433918,-2203.36982317,0.00013998,2]
[352952004,1739459433930,-2209.67017683,0.00013998,2]
[352952005,1739459433939,-2281.14,0.00013998,2]
[352952006,1739459433949,-1294.28,0.00013998,2]
[352952007,1739459433959,-500.0,0.00013998,2]
[352952008,1739459433968,-2310.5,0.00013998,2]
[352952010,1739459433978,-3632.22,0.00013998,2]
[352952011,1739459433987,-1989.2,0.00013999,2]
[352952012,1739459433997,-500.0,0.00013999,2]
[352952014,1739459434007,-2766.81,0.00013999,2]
[352952016,1739459434017,-1654.72,0.00013999,2]
[352952018,1739459434026,-2031.88,0.00013999,2]
[352952020,1739459434036,-916.96,0.00013999,2]
[352952022,1739459434045,-500.0,0.00013999,2]
[352952024,1739459434055,-500.0,0.00013999,2]
[352952026,1739459434064,-860.88,0.00013999,2]
[352952028,1739459434075,-500.0,0.00013999,2]
[352952030,1739459434085,-3096.18,0.00013999,2]
[352952032,1739459434094,-2835.03,0.00013999,2]
[352952033,1739459434103,-809.29,0.00013999,2]
[352952035,1739459434115,-792.74421375,0.00013999,2]
[352952038,1739459434127,-486.29470588,0.00013999,2]
[352952403,1739459438715,-707.28478293,0.00013997,2]
[352952404,1739459438728,-3452.36521707,0.00013997,2]
[352952405,1739459438738,-582.33388368,0.00013997,2]
[352952406,1739459438750,-2193.60611632,0.00013997,2]
[352952407,1739459438760,-500.0,0.00013998,2]
[352952408,1739459438771,-5285.51,0.00013998,2]
[352952409,1739459438781,-500.0,0.00013998,2]
[352952410,1739459438791,-2651.53,0.00013998,2]
[352952411,1739459438802,-1906.31,0.00013998,2]
[352952412,1739459438812,-81.72108037,0.00013999,2]
[352952413,1739459438822,-383.62216102,0.00013999,2]
[352952414,1739459438833,-264.889641,0.00013999,2]
[352952415,1739459438845,-1895.72819798,0.00013999,2]
[352952416,1739459438855,-2100.5,0.00013999,2]
[352952417,1739459438868,-1934.06,0.00013999,2]
[352952418,1739459438878,-531.12984117,0.00013999,2]
[352952419,1739459438888,-500.0,0.00013999,2]
[352952420,1739459438898,-2827.63,0.00013999,2]
[352952421,1739459438907,-1829.3,0.00013999,2]
[352952422,1739459438917,-500.0,0.00013999,2]
[352952423,1739459438927,-1436.89,0.00013999,2]
[352952424,1739459438937,-2540.9,0.00013999,2]
[352952425,1739459438947,-500.0,0.00013999,2]
[352952426,1739459438965,-500.0,0.00013999,2]
[352952427,1739459438981,-175.39196087,0.00013999,2]
[352952428,1739459438995,-1328.75,0.00013999,2]
[352952429,1739459439006,-210.24803913,0.00013999,2]
[352952430,1739459439016,-287.06122818,0.00013999,2]
[352952431,1739459439028,-1725.50877182,0.00013999,2]
[352952432,1739459439037,-1590.16,0.00013999,2]
[352952433,1739459439047,-500.0,0.00013999,2]
[352952434,1739459439057,-1634.81,0.00013999,2]
[352952435,1739459439067,-1274.76,0.00013999,2]
[352952436,1739459439077,-1114.19312252,0.00013999,2]
[352952437,1739459439089,-1038.42687748,0.00013999,2]
[352952438,1739459439099,-1887.32,0.00013999,2]
[352952439,1739459439108,-3585.61,0.00013999,2]
[352952440,1739459439121,-1146.34,0.00013999,2]
[352952441,1739459439130,-849.03,0.00013999,2]
[352952442,1739459439140,-1189.07,0.00013999,2]
[352952443,1739459439150,-500.0,0.00013999,2]
[352952444,1739459439159,-749.32,0.00013999,2]
[352952445,1739459439170,-1304.62,0.00013999,2]
[352952446,1739459439179,-500.0,0.00013999,2]
[352952447,1739459439189,-110.16275696,0.00013999,2]
[352952463,1739459439519,-658.47843359,0.00013999,2]
[352952464,1739459439530,-3496.32880945,0.00013999,2]
[352952465,1739459439540,-1575.36,0.00013999,2]
[352952466,1739459439551,-3016.37,0.00013999,2]
[352952467,1739459439560,-1154.07,0.00013999,2]
[352952468,1739459439569,-1056.87,0.00013999,2]
[352952469,1739459439578,-500.0,0.00013999,2]
[352952470,1739459439587,-4156.64,0.00013999,2]
[352952471,1739459439596,-1715.18,0.00013999,2]
[352952472,1739459439606,-1316.21,0.00013999,2]
[352952473,1739459439615,-3062.28,0.00013999,2]
[352952474,1739459439624,-1274.83,0.00013999,2]
[352952476,1739459439634,-5766.98,0.00013999,2]
[352952477,1739459439644,-1803.09,0.00013999,2]
[352952479,1739459439654,-1540.2,0.00013999,2]
[352952481,1739459439664,-2137.82,0.00013999,2]
[352952483,1739459439673,-2596.86,0.00013999,2]
[352952485,1739459439684,-500.0,0.00013999,2]
[352952487,1739459439694,-3119.3,0.00013999,2]
[352952489,1739459439704,-698.4,0.00013999,2]
[352952491,1739459439714,-2043.63,0.00013999,2]
[352952493,1739459439724,-1480.87,0.00013999,2]
[352952495,1739459439734,-2362.93,0.00013999,2]
[352952497,1739459439743,-621.63,0.00013999,2]
[352952499,1739459439753,-5700.39190655,0.00013999,2]
[352952501,1739459439764,-848.12809345,0.00013999,2]
[352952503,1739459439774,-500.0,0.00013999,2]
[352952505,1739459439784,-1179.71,0.00013999,2]
[352952507,1739459439793,-2130.01,0.00013999,2]
[352952509,1739459439804,-4940.23,0.00013999,2]
[352952511,1739459439813,-5783.26631258,0.00013999,2]
[352952513,1739459439825,-5882.75368742,0.00013999,2]
[352952515,1739459439835,-2146.83,0.00013999,2]
[352952517,1739459439844,-2177.94,0.00013999,2]
[352952519,1739459439854,-1212.63,0.00013999,2]
[352952522,1739459439865,-1892.55,0.00013999,2]
[352952524,1739459439875,-1488.74,0.00013999,2]
[352952526,1739459439885,-1661.93,0.00013999,2]
[352952528,1739459439896,-1425.27,0.00013999,2]
[352952529,1739459439905,-967.43,0.00013999,2]
[352952531,1739459439915,-500.0,0.00013999,2]
[352952533,1739459439926,-1020.86,0.00013999,2]
[352952536,1739459439936,-1539.28,0.00013999,2]
[352952538,1739459439946,-2588.94,0.00013999,2]
[352952541,1739459439966,-1334.66,0.00013999,2]
[352952543,1739459439978,-2713.84,0.00013999,2]
[352952545,1739459439988,-660.36,0.00013999,2]
[352952547,1739459439998,-327.94027633,0.00014,2]
[352952569,1739459440206,-1000.0,0.00014,2]
[352952571,1739459440223,-1000.0,0.00014,2]
[352952575,1739459440233,-1000.0,0.00014,2]
[352952578,1739459440244,-468.0,0.00014,3]
[352952581,1739459440256,-1000.0,0.00014,2]
[352952585,1739459440266,-1000.0,0.00014,2]
[352952588,1739459440275,-1000.0,0.00014,2]
[352952590,1739459440285,-1000.0,0.00014,2]
[352952593,1739459440296,-1000.0,0.00014,2]
[352952596,1739459440306,-1097.0,0.00014,2]
[352952598,1739459440315,-839.0,0.00014,2]
[352952600,1739459440325,-13858.23934891,0.00014,2]
[352952677,1739459441085,-511.12160747,0.00013998,2]
[352952679,1739459441096,-2667.03,0.00013998,2]
[352952681,1739459441106,-6549.10597915,0.00014,2]
[352952683,1739459441118,-929.98,0.00014,2]
[352952685,1739459441129,-4629.53578602,0.0001401,2]
[352952688,1739459441139,-500.0,0.00014031,2]
[352952690,1739459441149,-574.17500961,0.00014032,2]
[352952691,1739459441159,-500.0,0.00014032,2]
[352952693,1739459441169,-500.0,0.00014032,2]
[352952695,1739459441179,-1030.12,0.00014032,2]
[352952697,1739459441189,-500.0,0.00014032,2]
[352952700,1739459441199,-500.0,0.00014032,2]
[352952702,1739459441209,-500.0,0.00014032,2]
[352952703,1739459441219,-1058.08,0.00014032,2]
[352952705,1739459441229,-500.0,0.00014032,2]
[352952707,1739459441238,-500.0,0.00014032,2]
[352952709,1739459441249,-900.96,0.00014032,2]
[352952711,1739459441263,-169.08827156,0.00014032,2]
[352952713,1739459441272,-500.0,0.00014032,2]
[352952715,1739459441282,-500.0,0.00014032,2]
[352952717,1739459441291,-714.0,0.00014032,2]
[352952719,1739459441302,-617.55530234,0.00014032,2]
[352952721,1739459441312,-683.24,0.00014032,2]
[352952722,1739459441321,-500.0,0.00014032,2]
[352952723,1739459441332,-556.12,0.00014032,2]
[352952724,1739459441341,-1125.89,0.00014032,2]
[352952725,1739459441350,-506.98766438,0.00014032,2]
[352952726,1739459441360,-875.46,0.00014032,2]
[352952727,1739459441373,-938.44,0.00014032,2]
[352952728,1739459441383,-1204.44,0.00014032,2]
[352952729,1739459441393,-500.0,0.00014032,2]
[352952730,1739459441402,-306.42849422,0.00014032,2]
[352952731,1739459441411,-500.0,0.00014032,2]
[352952732,1739459441421,-500.0,0.00014032,2]
[352952733,1739459441430,-500.0,0.00014032,2]
[352952734,1739459441440,-837.96,0.00014032,2]
[352952736,1739459441449,-523.2,0.00014032,2]
[352952738,1739459441459,-704.1,0.00014032,2]
[352952740,1739459441468,-500.0,0.00014032,2]
[352952742,1739459441478,-500.0,0.00014032,2]
[352952744,1739459441487,-577.60250942,0.00014032,2]
[352952746,1739459441496,-1013.41,0.00014032,2]
[352952748,1739459441505,-500.0,0.00014032,2]
[352952750,1739459441514,-501.63340414,0.00014032,2]
[352952751,1739459441523,-500.0,0.00014032,2]
[352952753,1739459441533,-699.23,0.00014032,2]
[352952755,1739459441542,-987.0,0.00014032,2]
[352952757,1739459441552,-785.65,0.00014032,2]
[352952759,1739459441561,-500.0,0.00014032,2]
[352952761,1739459441571,-500.0,0.00014032,2]
[352952764,1739459441580,-549.49,0.00014032,2]
[352952766,1739459441590,-500.0,0.00014032,2]
[352952768,1739459441600,-811.31,0.00014032,2]
[352952770,1739459441611,-500.0,0.00014032,2]
[352952772,1739459441624,-500.0,0.00014032,2]
[352952774,1739459441634,-500.0,0.00014032,2]
[352952776,1739459441643,-500.0,0.00014032,2]
[352952777,1739459441652,-500.0,0.00014032,2]
[352952780,1739459441662,-500.0,0.00014032,2]
[352952781,1739459441671,-818.39,0.00014032,2]
[352952783,1739459441681,-173.2521789,0.00014032,2]
[352952785,1739459441691,-507.3763701,0.00014032,2]
[352952788,1739459441701,-501.99635662,0.00014032,2]
[352952790,1739459441711,-500.0,0.00014032,2]
[352952791,1739459441720,-500.0,0.00014032,2]
[352952793,1739459441729,-500.0,0.00014032,2]
[352952795,1739459441739,-1214.12,0.00014032,2]
[352952797,1739459441748,-1413.67,0.00014032,2]
[352952799,1739459441759,-577.86,0.00014032,2]
[352952801,1739459441768,-559.81238518,0.00014032,2]
[352952803,1739459441778,-829.86,0.00014032,2]
[352952805,1739459441787,-500.0,0.00014032,2]
[352952807,1739459441797,-500.0,0.00014032,2]
[352952809,1739459441806,-595.45,0.00014032,2]
[352952811,1739459441814,-572.56179204,0.00014032,2]
[352952813,1739459441823,-519.99,0.00014032,2]
[352952815,1739459441832,-500.0,0.00014032,2]
[352952817,1739459441842,-671.02,0.00014032,2]
[352952819,1739459441851,-886.97,0.00014032,2]
[352952821,1739459441860,-500.0,0.00014032,2]
[352952823,1739459441873,-932.88,0.00014032,2]
[352952825,1739459441883,-629.55,0.00014032,2]
[352952827,1739459441892,-1291.8,0.00014032,2]
[352952829,1739459441902,-500.0,0.00014032,2]
[352952831,1739459441912,-500.0,0.00014032,2]
[352952833,1739459441922,-500.0,0.00014032,2]
[352952835,1739459441931,-682.4,0.00014032,2]
[352952837,1739459441940,-500.0,0.00014032,2]
[352952839,1739459441951,-912.58,0.00014032,2]
[352952841,1739459441960,-500.0,0.00014032,2]
[352952843,1739459441970,-500.0,0.00014032,2]
[352952845,1739459441980,-1422.31,0.00014032,2]
[352952847,1739459441990,-798.31,0.00014032,2]
[352952848,1739459442000,-500.0,0.00014032,2]
[352952850,1739459442010,-1047.73,0.00014032,2]
[352952852,1739459442019,-500.0,0.00014032,2]
[352952855,1739459442030,-500.0,0.00014032,2]
[352952856,1739459442039,-962.75,0.00014032,2]
[352952858,1739459442048,-404.75633325,0.00014032,2]
[352952860,1739459442058,-384.75407931,0.00014032,2]
[352952878,1739459442229,-500.0,0.00014032,2]
[352952880,1739459442239,-500.0,0.00014032,2]
[352952881,1739459442249,-500.0,0.00014032,2]
[352952883,1739459442262,-500.0,0.00014032,2]
[352952885,1739459442272,-667.5,0.00014032,2]
[352952888,1739459442281,-740.77,0.00014032,2]
[352952889,1739459442291,-921.94,0.00014032,2]
[352952891,1739459442302,-717.13,0.00014032,2]
[352952893,1739459442312,-500.0,0.00014032,2]
[352952895,1739459442321,-500.0,0.00014032,2]
[352952897,1739459442331,-565.28,0.00014032,2]
[352952899,1739459442340,-1335.12,0.00014032,2]
[352952901,1739459442349,-546.02,0.00014032,2]
[352952903,1739459442358,-1057.4,0.00014032,2]
[352952905,1739459442368,-500.0,0.00014032,2]
[352952907,1739459442378,-584.21,0.00014032,2]
[352952909,1739459442388,-500.0,0.00014032,2]
[352952911,1739459442398,-500.0,0.00014032,2]
[352952913,1739459442407,-500.0,0.00014032,2]
[352952915,1739459442416,-501.42,0.00014032,2]